Cogmind - Beta 13 @@@ ROGUE MODE // 2024.04.11 @ 20:33:33 Player: Patryk Z Result: Destroyed by YI-UF0 with YI-UF0's Doublenader Performance ------------- Evolutions (1) 500 Regions Visited (3) 600 Robots Destroyed (29) 145 Value Destroyed (564) 564 Prototype IDs (0) 0 Alien Tech Used (0) 0 Bonus (0) 0 TOTAL SCORE: 1809 Bonus ------- None Cogmind --------- Core Integrity 0/400 Matter 116/300 Energy 100/100 System Corruption 0% Temperature Cool (0) Movement Core (700) Ox13 Location -9/Mines Parts ------- > --- POWER (1) -------- (None) > --- PROPULSION (2) --- (None) > --- UTILITY (4) ------ High-capacity Storage Unit Signal Interpreter > --- WEAPON (2) ------- Mini Grenade Launcher Mini Grenade Launcher > --- INVENTORY (20) --- Light Ion Engine VTOL Module Structural Scanner Sensor Array Shield Generator Decoy Drone Bay Improved Light Cannon Mini Grenade Launcher Mini Grenade Launcher Mini Grenade Launcher Mini Grenade Launcher Mini Grenade Launcher Mini Grenade Launcher Datajack Mining Laser Peak State ------------ > --- POWER ------------ Ion Engine > --- PROPULSION ------- Wheel Wheel > --- UTILITY ---------- High-capacity Storage Unit Sensor Array Signal Interpreter Light Armor Plating > --- WEAPON ----------- Particle Cannon Heavy Assault Rifle > --- INVENTORY -------- Light Ion Engine Wheel Wheel VTOL Module Structural Scanner Sensor Array Shield Generator Decoy Drone Bay Improved Light Cannon Mini Grenade Launcher Mini Grenade Launcher Mini Grenade Launcher Mini Grenade Launcher Mini Grenade Launcher Mini Grenade Launcher Mini Grenade Launcher Mini Grenade Launcher Datajack Mining Laser [Rating: 15] Favorites ----------- Power Ion Engine Engine Ion Engine Propulsion Wheel Wheel Wheel Utility High-capacity Storage Unit Device Shield Generator Storage High-capacity Storage Unit Processor Signal Interpreter Protection Light Armor Plating Weapon Particle Cannon Energy Gun Medium Laser Energy Cannon Particle Cannon Ballistic Gun Heavy Assault Rifle Launcher Grenade Launcher Special Weapon Mining Laser Build | -11 -10 -9 -9 ------- Run | Yrd Mat Mat Min Slots Evolved 2 | . . 2 . Power . | . . . . Propulsion . | . . . . Utility 2 | . . 2 . Weapon . | . . . . Parts Attached 51 | 7 4 24 16 Power 1 | 1 . . . Engine 1 | 1 . . . Core . | . . . . Reactor . | . . . . Propulsion 7 | 2 . 2 3 Treads . | . . . . Leg . | . . . . Wheel 7 | 2 . 2 3 Hover . | . . . . Flight . | . . . . Utility 25 | 2 1 11 11 Device 19 | 1 . 8 10 Storage 2 | 1 1 . . Processor 1 | . . . 1 Hackware . | . . . . Protection 3 | . . 3 . Artifact . | . . . . Weapon 18 | 2 3 11 2 Energy Gun 3 | 2 1 . . Energy Cannon 1 | . . 1 . Ballistic Gun 4 | . . 4 . Ballistic Cannon . | . . . . Launcher 6 | . 1 3 2 Special Weapon 4 | . 1 3 . Impact Weapon . | . . . . Slashing Weapon . | . . . . Piercing Weapon . | . . . . Special Melee Weapon . | . . . . Unidentified Prototypes . | . . . . Parts Lost 11 | . . 2 9 Power 1 | . . . 1 Propulsion 4 | . . . 4 Utility 4 | . . 2 2 Weapon 2 | . . . 2 Highest Loss Streak 9 | . . 1 9 To Critical Strikes . | . . . . Average Slot Usage (%) 94 | . 100 91 97 Engine 11 | . 14 11 10 Wheel 22 | . 28 22 21 Device 16 | . 14 19 12 Storage 11 | . 14 11 11 Processor 2 | . . . 8 Protection 8 | . . 7 10 Energy Gun 2 | . 25 . . Energy Cannon 9 | . . 10 10 Ballistic Gun 6 | . . 4 10 Special Weapon 1 | . 2 2 . Naked Turns . | . . . . Heaviest Build 60 | 14 49 60 58 Greatest Support 20 | 20 20 20 20 Greatest Overweight (x) 5 | . 2 2 5 Average Overweight (x) 1 | . 1 2 2 Largest Inventory Capacity 20 | 8 20 20 20 Average Capacity 19 | 7 16 20 20 Most Carried 20 | 5 8 20 20 Average Carried 14 | 1 6 13 18 Final Capacity 20 | 8 20 20 20 Final Carried 19 | 5 7 19 16 Class Distribution -------------------- 71% | Mutant 28% | Scavenger-Mutant Dominant Class ---------------- Mutant | -10/Materials Mutant | -9/Materials Scavenger-Mutant | -9/Mines Resources | -11 -10 -9 -9 ----------- Run | Yrd Mat Mat Min Matter Collected 746 | 225 15 475 31 Remotely . | . . . . Salvage Created 739 | 57 30 652 . Parts 69 | 9 8 52 . Haulers Intercepted . | . . . . Recyclers Shooed 3 | 1 . 2 . Parts Field Recycled . | . . . . Retrieved Matter . | . . . . Parts Self-Destructed . | . . . . Prevented . | . . . . Kills | -11 -10 -9 -9 ------- Run | Yrd Mat Mat Min Combat Hostiles Destroyed 17 | . 3 14 . Guns 2 | . . 2 . Cannons 6 | . . 6 . AOE 9 | . 3 6 . Classes Destroyed 10 | 1 2 7 . Worker 1 | . . 1 . Builder 4 | . . 4 . Tunneler 3 | 3 . . . Recycler 1 | . . 1 . Operator 2 | . 1 1 . Watcher 1 | . . 1 . Swarmer 7 | . 3 4 . Grunt 6 | . . 6 . Brawler 1 | . . 1 . Sentry 3 | . . 3 . Best Kill Streak 4 | 3 3 4 . Combat Bots Only 4 | . 3 4 . Max Kills in Single Turn 3 | 1 2 3 . Gunslinging . | . . . . Exploded 3 | . 2 3 . Melee . | . . . . Uniques/NPCs Destroyed . | . . . . Combat | -11 -10 -9 -9 -------- Run | Yrd Mat Mat Min Hostile Shots Fired 94 | . 9 59 26 Missed 19 | . 3 10 6 Damage Taken 1290 | . 56 506 728 Core 417 | . 10 42 365 Absorbed by Shields 150 | . . 150 . Core Remaining (%) 98 | 100 96 . . Volleys Fired 93 | 7 9 73 4 Largest 2 | 2 2 2 2 Hottest 168 | 90 150 168 60 Shots Fired 136 | 14 18 96 8 Gun 53 | 14 14 25 . Cannon 54 | . . 54 . Launcher 20 | . 3 9 8 Special 9 | . 1 8 . Kinetic 25 | . . 25 . Thermal 91 | 14 15 62 . Explosive 20 | . 3 9 8 Electromagnetic . | . . . . Robot Hit Streak 10 | 5 3 10 . Robot Miss Streak 5 | 1 2 5 . Penetration Max . | . . . . Secondary Targets . | . . . . Shots Hit Robots 63 | 10 7 46 . Core Hits 38 | 3 3 29 3 Critical Kills . | . . . . Critical Parts Destroyed . | . . . . Critical Strikes . | . . . . Melee Attacks . | . . . . Impact . | . . . . Slashing . | . . . . Piercing . | . . . . Sneak Attacks . | . . . . Combat Hostiles . | . . . . Follow-up Attacks . | . . . . Damage Inflicted 1615 | 116 262 1208 29 Guns 408 | 116 93 199 . Cannons 609 | . . 609 . Explosions 598 | . 169 400 29 Melee . | . . . . Ramming . | . . . . Kinetic 199 | . . 199 . Thermal 818 | 116 93 609 . Explosive 598 | . 169 400 29 Electromagnetic . | . . . . Impact . | . . . . Slashing . | . . . . Piercing . | . . . . Highest Corruption . | . . . . Average Corruption . | . . . . Corruption Purged . | . . . . Corruption Blocked . | . . . . Overload Shots . | . . . . Overflow Damage 65 | . 60 5 . Projectiles 5 | . . 5 . Explosions 60 | . 60 . . Melee . | . . . . Knockbacks . | . . . . Impact . | . . . . Kinetic . | . . . . Secondary . | . . . . Self-Inflicted Damage 19 | . . . 19 Shots 1 | . . . 1 Rammed . | . . . . Targets Rammed . | . . . . Kicked . | . . . . Crushed . | . . . . Highest Temperature 442 | 100 150 442 . Average Temperature 108 | 48 54 124 . Received Heat Transfer 222 | . 12 210 . Effects 6 | . . 6 . Shutdowns 1 | . . 1 . Energy Bleed 3 | . . 3 . Interference 2 | . . 2 . Siege Activations . | . . . . Robots Corrupted . | . . . . Combat Hostiles . | . . . . Parts Fried . | . . . . Impact Corruptions . | . . . . Robots Melted . | . . . . Combat Hostiles . | . . . . Parts Melted 3 | 2 1 . . Heat Transferred 1668 | 322 236 1110 . Parts Sabotaged . | . . . . Parts Stolen . | . . . . Parts Stripped . | . . . . Power Chain Reactions . | . . . . Alert | -11 -10 -9 -9 ------- Run | Yrd Mat Mat Min Peak Influence 236 | 15 108 236 60 Initial 60 | . 9 45 60 Average 83 | 3 70 122 29 Maximum Alert Level 1 | . . 1 . Low Security (%) 98 | 100 100 97 100 Level 1 1 | . . 2 . Level 2 . | . . . . Level 3 . | . . . . Level 4 . | . . . . Level 5 . | . . . . High Security . | . . . . Max Security . | . . . . Squads Dispatched 3 | . 3 . . Investigation 1 | . 1 . . Extermination . | . . . . Reinforcement 2 | . 2 . . Assault . | . . . . Garrison . | . . . . Intercept . | . . . . Searches Triggered . | . . . . Construction Impeded . | . . . . Haulers Reinforced . | . . . . Active Scanning Responses . | . . . . Cargo Convoy Interrupts . | . . . . Stealth | -11 -10 -9 -9 --------- Run | Yrd Mat Mat Min Distress Signals 4 | . 2 2 . Communications Jammed . | . . . . Distress Signals . | . . . . Times Spotted 23 | . 5 17 1 Peak Tracking Total 4 | . 3 4 1 Tactical Retreats . | . . . . Traps | -11 -10 -9 -9 ------- Run | Yrd Mat Mat Min Traps Triggered . | . . . . Indirectly . | . . . . Trap Hack Attempts . | . . . . Triggered . | . . . . Disarmed . | . . . . Reprogrammed . | . . . . Reused . | . . . . Traps Extracted . | . . . . Installed . | . . . . Triggered . | . . . . Machines | -11 -10 -9 -9 ---------- Run | Yrd Mat Mat Min Machines Disabled 1 | . . 1 . Max in Single Turn 1 | . . 1 . Machines Repaired . | . . . . Machines Dismantled . | . . . . Machines Sabotaged . | . . . . Overloaded Fab Kills . | . . . . Hacking | -11 -10 -9 -9 --------- Run | Yrd Mat Mat Min Machines Accessed 9 | . 2 6 1 Terminals 8 | . 2 6 . Fabricators . | . . . . Repair Stations . | . . . . Recycling Units . | . . . . Scanalyzers . | . . . . Garrison Access . | . . . . Total Hacks 29 | . 4 24 1 Successful 11 | . 1 9 1 Failed 17 | . 3 14 . Catastrophic 3 | . . 3 . Database Lockouts 1 | . . 1 . Manual 29 | . 4 25 . Terminals 28 | . 4 24 . Fabricators . | . . . . Repair Stations . | . . . . Recycling Units . | . . . . Scanalyzers . | . . . . Garrison Access . | . . . . Terminal Hacks 5 | . . 4 1 Part Schematic 3 | . . 3 . Open Door 1 | . . . 1 Terminal Index 1 | . . 1 . Fabricator Hacks . | . . . . Repair Station Hacks . | . . . . Recycling Unit Hacks . | . . . . Scanalyzer . | . . . . Garrison Access Hacks . | . . . . Unauthorized Hacks 6 | . 1 5 . Terminals 6 | . 1 5 . Botnet 6 | . 1 5 . Fabricators . | . . . . Repair Stations . | . . . . Recycling Units . | . . . . Scanalyzers . | . . . . Garrison Access . | . . . . Data Cores Recovered . | . . . . Used . | . . . . Hacking Detections 8 | . 2 6 . Full Trace Events . | . . . . Feedback Events . | . . . . Feedback Blocked . | . . . . Robot Schematics Acquired . | . . . . Robots Built . | . . . . Authchips . | . . . . Time . | . . . . Total Robot Build Rating . | . . . . Part Schematics Acquired 3 | . . 3 . Parts Built . | . . . . Authchips . | . . . . Time . | . . . . Total Part Build Rating . | . . . . Parts Repaired . | . . . . Time . | . . . . Parts Recycled . | . . . . Recycled Matter . | . . . . Retrieved Matter . | . . . . Retrieved Components . | . . . . Parts Scanalyzed . | . . . . Part Schematics Acquired . | . . . . Parts Damaged . | . . . . Bothacking | -11 -10 -9 -9 ------------ Run | Yrd Mat Mat Min Used RIF Installer . | . . . . Robots Hacked . | . . . . Non-combat . | . . . . Combat . | . . . . Robot Hacks Applied . | . . . . Relay Couplers Released . | . . . . Fabnet Peak Effective % . | . . . . Robots Rewired . | . . . . Allies Hacked . | . . . . Hacks Repelled . | . . . . Allies | -11 -10 -9 -9 -------- Run | Yrd Mat Mat Min Total Allies . | . . . . Largest Group . | . . . . Highest-Rated Group . | . . . . Highest-Rated Ally . | . . . . Total Orders . | . . . . Ally Attacks . | . . . . Total Damage . | . . . . Kills . | . . . . Allies Corrupted . | . . . . Allies Melted . | . . . . Intel | -11 -10 -9 -9 ------- Run | Yrd Mat Mat Min Robot Analysis Total . | . . . . Derelict Logs Recovered 1 | . . . 1 Drone Launches . | . . . . Drone Recoveries . | . . . . Exploration | -11 -10 -9 -9 ------------- Run | Yrd Mat Mat Min Turns Passed 2519 | 90 198 1410 821 Spaces Moved 1006 | 60 149 475 322 Core 2 | 2 . . . Treads . | . . . . Legs . | . . . . Wheels 1004 | 58 149 475 322 Hover . | . . . . Flight . | . . . . Fastest Speed 50 | 50 80 110 95 Average Speed 107 | 79 102 110 110 Slowest Speed 155 | 80 110 110 155 Overloaded Moves . | . . . . Propulsion Burnouts . | . . . . Robots Hopped . | . . . . Cave-ins Triggered . | . . . . Exploration Rate (%) 29 | 5 27 32 54 Regions Visited 3 Branch Regions 1 Pre-discovered Areas . | . . . . Known Exits Taken . | . . . . Unknown Exits Taken 3 | 1 1 1 . Scrap Searched 1 | . . . 1 Spaces Dug 9 | . 1 8 . Terrain Destroyed 125 | . 23 77 25 Melee . | . . . . Projectile 11 | . 1 10 . AOE 114 | . 22 67 25 Terrain Rammed . | . . . . Walls Destroyed . | . . . . Machines Disabled . | . . . . Actions | -11 -10 -9 -9 --------- Run | Yrd Mat Mat Min Total 2289 | 84 175 1250 780 Wait 1090 | 6 5 651 428 Move 1003 | 59 148 474 322 Hop . | . . . . Pick Up 27 | 5 5 13 4 Fast Attach 13 | 7 . 6 . Attach 16 | . 1 9 6 Detach 13 | . 1 10 2 Swap 22 | . 3 9 10 Drop 12 | . 3 5 4 Fire 93 | 7 9 73 4 Melee . | . . . . Ram . | . . . . Kick . | . . . . Crush . | . . . . Escape Stasis . | . . . . Rewire . | . . . . Trap . | . . . . Miscellaneous . | . . . . Route ------- -11/Scrapyard -10/Materials -9/Materials -9/Mines (discovered 2 exits: *Mat x2) History --------- Turn | Location | Event 8 | -11/Scrapyard | Discovered new exit (range 16) 91 | -11/Scrapyard | Entered Materials 194 | -10/Materials | Discovered new exit (range 15) 289 | -10/Materials | Entered another Materials area 289 | -9/Materials | Evolved 2 slots: Utility x2 356 | -9/Materials | Build established: Mutant 1651 | -9/Materials | Central database locked down 1693 | -9/Materials | Discovered new exit (range 6) 1699 | -9/Materials | Entered Mines 1708 | -9/Mines | Met a Derelict bent on vengeance 1748 | -9/Mines | YI-UF0 nonchalantly dropped a Grenade Launcher on the ground 1803 | -9/Mines | Discovered new exit (range 14) 1867 | -9/Mines | Identified exit to Materials 2080 | -9/Mines | Found the Drone Emporium 2086 | -9/Mines | Found Prototype Device 2171 | -9/Mines | Build established: Scavenger-Mutant 2513 | -9/Mines | Core integrity fell below 50% 2518 | -9/Mines | Core integrity fell below 20% 2520 | -9/Mines | Destroyed by YI-UF0 with YI-UF0's Doublenader Last Messages --------------- 02388_ U-05 Engineer lays Concrete. 02403_ T-07 Excavator is excavating. 02418_ U-05 Engineer lays Concrete. 02421_ T-07 Excavator is excavating. 02487_ Ion Engine destroyed. 02488_ The unstable cave ceiling collapses. 02491_ Wheel destroyed. 02493_ The unstable cave ceiling collapses. 02493_ Hvy. Assault Rifle destroyed. 02493_ Lgt. Armor Plating destroyed. 02495_ The unstable cave ceiling collapses. 02498_ Particle Cannon destroyed. 02498_ Wheel destroyed. 02499_ The unstable cave ceiling collapses. 02500_ Sensor Array destroyed. 02502_ The unstable cave ceiling collapses. 02512_ Wheel destroyed. 02513_ The unstable cave ceiling collapses. 02516_ Wheel destroyed. 02517_ The unstable cave ceiling collapses. Map ----- +----------------------------------------------------+ | ????????????????????????????????????? | | #??????????????????????????????????? | | ##????????????????????????????????? | | #????????????????????????????????? | | #????????????????????????????????? | | #????????????????????????????????? | | #????????????????????????????????? | | #????????????????????????????????? | | #??????????#?????????????????????? | | #?????????? ?????????????????????? | | ##????????? ?????????????????????? | | ####?????? ?????????????????????? | | ##????# ?????????????????????? | | #????# #????????????????????? | | #????# #????????????????????? | | ????# #????????????????????? | | ! #?? #????????????????????? | | # # # # #??????????????????? | | ## ##????????????????? | | #???????????????? | | #[ ######?????????? | | # # # #######???? | | ! g #???? | | ##??# # """#???? | | ##???# # """#???? | | ##???# # @ """#???? | | ##??# # #???? | | ##?# ### ###???? | | ### ## #????? | | ### ## ### ## # ###????? | | #### #?# #????#### ??????? | | ##?###??# #????#### ##### ##########? | | ##?????## #????# ##### ########### | | ######## ##??## #####?## ### ### | | ##""## ##?## ######## ## ## | | #" #X #### ##?##### ## | | #" #?## ### | | #" ##?## ###? | | #" # ##??#### # ####? | | ##""## #???## ###?? | | ?###### #???## ##?? | | ## ##???#### ## ###?? | | # ####????###############?? | | ## ###?????????############??? | | ?##########?????????????????????????? | | ????????????????????????????????????? | | | | | | | | | +----------------------------------------------------+ Best States ------------- Heat Dissipation 28 Energy Generation 10 Energy Capacity 250 Matter Stores 300 Matter Capacity 300 Sight Range 16 Robot Scan Range 14 Terrain Scan Range 14 Terrain Scan Density 10 Armor Coverage 300 Evasion (%) 44 Item Schematics ----------------- Arm. Wheel | -9/Materials | Hacked Med. Armor Plating | -9/Materials | Hacked Imp. Targeting Computer | -9/Materials | Hacked Robot Schematics ------------------ None Fabricated ------------ Nothing Alien Tech Used ----------------- None Achievements -------------- None Challenges ------------ None Game ------ Seed BehemothDecoderThrower Manual? 0 Play Time 00:38:08 Cumulative 38.4 hours Start 2024.04.11 @ 19:53:30 End 2024.04.11 @ 20:33:33 Sessions 1 Manual Loads 0 Difficulty Rogue Special Mode None Game No. 25 Rogue 25 Adventurer 0 Explorer 0 Win Type - Total 1 Types 1/0/0/0/0/0/0/0/0 Lore% 24 Gallery% 26 Achievement% 29 Wizard Run 0 Options --------- Layout 0 ASCII 0 Keyboard 1 Movement Numpad Keybinds 0 Fullscreen 2 Font 18/SmallcapsGlow Map View 76x50 Zoom Use 0% Tactical HUD 1 Map Filters NONE Filters NONE Steam 1 RUN: cd5c90fb-a89d-429d-8a91-b37f617120b6